bitfinex/quotes_BTCUSD_20260311
["timestamp","ask_amount","ask_price","bid_price","bid_amount"]
[1773236110315,0.16013945,70670.0,70641.0,0.07097984]
[1773236110316,0.09620404,70667.0,70641.0,0.07097984]
[1773236110518,0.07075538,70666.0,70641.0,0.0002]
[1773236110716,0.09620404,70665.0,70635.0,0.0707857]
[1773236110960,0.07075538,70666.0,70635.0,0.07078643]
[1773236110961,0.09620404,70663.0,70635.0,0.07078643]
[1773236111141,0.09620404,70663.0,70634.0,0.0008139]
[1773236111346,0.07075538,70666.0,70634.0,0.07160087]
[1773236111347,0.09620404,70661.0,70634.0,0.07160087]
[1773236111579,0.00148,70660.0,70634.0,0.07160087]
[1773236111777,0.07075533,70667.0,70640.0,0.16033907]
[1773236111930,0.00148,70666.0,70641.0,0.00148]
[1773236112133,0.07175438,70669.0,70641.0,0.00148]
[1773236112134,0.00148,70665.0,70641.0,0.00148]
[1773236112343,0.00070749,70669.0,70641.0,0.00148]
[1773236112553,0.07073522,70687.0,70652.0,0.0707694]
[1773236112750,0.00148,70686.0,70653.0,0.00148]
[1773236113178,0.07072947,70692.0,70653.0,0.00148]
[1773236113179,0.07072973,70692.0,70660.0,0.17165621]
[1773236113382,0.07072394,70698.0,70653.0,0.03382816]
[1773236113583,0.01124,70700.0,70660.0,0.17165621]
[1773236113926,0.01124,70700.0,70652.0,0.0707694]
[1773236113927,0.37919009,70699.0,70652.0,0.0707694]
[1773236114133,0.09545697,70698.0,70653.0,0.00148]
[1773236114299,0.09545697,70698.0,70660.0,0.17165621]
[1773236114480,0.07072235,70699.0,70653.0,0.00148]
[1773236114481,0.01124,70700.0,70670.0,0.17165621]
[1773236114683,0.01124,70700.0,70651.0,0.17283666]
[1773236114684,0.00148,70699.0,70651.0,0.17283666]
[1773236114904,0.09545697,70698.0,70652.0,0.07076926]
[1773236115105,0.09545697,70698.0,70653.0,0.00148]
[1773236115309,0.09545697,70698.0,70653.0,0.00248]
[1773236115536,0.08196189,70700.0,70660.0,0.17165621]
[1773236115759,0.17741886,70700.0,70670.0,0.002]
[1773236115926,0.09507391,70698.0,70653.0,0.001]
[1773236116121,0.09507391,70698.0,70654.0,0.00148]
[1773236116394,0.09507391,70698.0,70655.0,0.00148]
[1773236116574,0.07072535,70696.0,70656.0,0.07076539]
[1773236116874,0.09507391,70695.0,70656.0,0.07076539]
[1773236117295,0.09507391,70695.0,70657.0,0.00148]
[1773236117702,0.09507391,70695.0,70660.0,0.17165621]
[1773236117879,0.00148,70703.0,70660.0,0.17165621]
[1773236118052,0.0819614,70700.0,70660.0,0.17165621]
[1773236118489,0.0819614,70700.0,70661.0,0.00148]
[1773236118797,0.0819614,70700.0,70658.0,0.07076339]
[1773236118798,0.09468558,70699.0,70658.0,0.07076339]
[1773236118996,0.09468558,70699.0,70659.0,0.00148]
[1773236119235,0.09468558,70699.0,70660.0,0.002]
[1773236119778,0.09468558,70697.0,70660.0,0.002]
[1773236120020,0.0943004,70695.0,70660.0,0.002]
[1773236120226,0.00148,70696.0,70656.0,0.07224439]
[1773236120227,0.0943004,70693.0,70656.0,0.07076439]
[1773236120368,0.17165621,70690.0,70646.0,0.00148]
[1773236120576,0.17165621,70690.0,70642.0,0.070779]
[1773236120577,0.17165621,70680.0,70642.0,0.070779]
[1773236120772,0.17165621,70680.0,70639.0,0.07078161]
[1773236120773,0.0957804,70679.0,70639.0,0.07078161]
[1773236120971,0.0943004,70679.0,70639.0,0.07078161]
[1773236121213,0.00148,70678.0,70639.0,0.07078242]
[1773236121412,0.0943004,70677.0,70639.0,0.07078242]
[1773236121734,0.00148,70676.0,70639.0,0.07078242]
[1773236122027,0.08778456,70675.0,70639.0,0.07078242]
[1773236122248,0.08778456,70675.0,70640.0,0.00144]
[1773236122629,0.002,70679.0,70641.0,0.07078042]
[1773236122630,0.07074337,70678.0,70641.0,0.07078042]
[1773236122996,0.00148,70677.0,70641.0,0.07078042]
[1773236123159,0.08778456,70677.0,70641.0,0.07078042]
[1773236123359,0.08778456,70677.0,70642.0,0.00148]
[1773236123728,0.00148,70676.0,70642.0,0.00148]
[1773236123928,0.00248,70676.0,70642.0,0.00148]
[1773236124125,0.00148,70675.0,70642.0,0.00148]
[1773236124348,0.00148,70674.0,70642.0,0.001405]
[1773236124516,0.001,70676.0,70642.0,0.00133]
[1773236124713,0.33926387,70742.0,70650.0,0.17165621]
[1773236124714,0.08778456,70692.0,70650.0,0.17165621]
[1773236124957,0.00148,70691.0,70651.0,0.24004545]
[1773236125114,0.08778456,70690.0,70652.0,0.001405]
[1773236125327,0.08778456,70690.0,70652.0,0.00133]
[1773236125555,0.08778456,70688.0,70653.0,0.00148]
[1773236125744,0.08778456,70686.0,70654.0,0.00148]
[1773236125947,0.00148,70685.0,70654.0,0.00133]
[1773236126157,0.08863653,70684.0,70643.0,0.07062842]
[1773236126359,0.08863653,70684.0,70643.0,0.07055342]
[1773236126669,0.07074036,70681.0,70645.0,0.07077641]
[1773236126849,0.07074036,70681.0,70645.0,0.07070141]
[1773236126850,0.08863653,70680.0,70645.0,0.07070141]
[1773236127060,0.08863653,70680.0,70645.0,0.07055141]
[1773236127260,0.08863653,70678.0,70638.0,0.07090742]
[1773236127448,0.07074036,70681.0,70638.0,0.07090742]
[1773236127449,0.00148,70677.0,70639.0,0.001405]
[1773236127621,0.09011653,70676.0,70639.0,0.00133]
[1773236127822,0.09011653,70676.0,70638.0,0.07238783]
[1773236128056,0.09011653,70676.0,70638.0,0.07223783]
[1773236128260,0.00148,70675.0,70638.0,0.07223783]
[1773236128523,0.08863653,70673.0,70638.0,0.07060783]
[1773236128744,0.08863653,70670.0,70638.0,0.07060783]
[1773236128944,0.00148,70669.0,70638.0,0.07060783]
[1773236129159,0.08863653,70668.0,70638.0,0.07060783]
[1773236129361,0.08863653,70666.0,70638.0,0.07060783]
[1773236129560,0.00148,70665.0,70638.0,0.07060783]
[1773236129871,0.00148,70664.0,70638.0,0.07060783]
[1773236130416,0.07073636,70685.0,70650.0,0.17174708]
[1773236130564,0.00148,70684.0,70651.0,0.23464678]
[1773236130767,0.00148,70684.0,70652.0,0.0722494]
[1773236130768,0.07073836,70683.0,70652.0,0.0722494]
[1773236130986,0.07072366,70698.0,70652.0,0.0722494]
[1773236130987,0.00148,70695.0,70652.0,0.0722494]
[1773236131186,0.01124,70700.0,70655.0,0.00687736]
[1773236131393,0.08863653,70711.0,70680.0,0.17174708]
[1773236131592,0.33909343,70777.0,70683.0,0.29555662]
[1773236131593,0.44989121,70721.0,70683.0,0.29555662]
[1773236131761,0.09011653,70720.0,70683.0,0.29555662]
[1773236132164,0.37102153,70735.0,70700.0,0.16004108]
[1773236132376,0.07068536,70736.0,70701.0,0.00148]
[1773236132576,0.07067608,70746.0,70710.0,0.16004108]
[1773236132826,0.00148,70746.0,70721.0,0.07070035]
[1773236133003,0.08863653,70749.0,70730.0,0.16004108]
[1773236133209,0.16004108,70780.0,70721.0,0.07070035]
[1773236133210,1e-08,70757.0,70739.0,0.16004108]
[1773236133386,1e-08,70757.0,70721.0,0.07070035]
[1773236133387,0.08863653,70777.0,70747.0,0.16004108]
[1773236133590,0.15928105,70777.0,70748.0,0.00148]
[1773236133789,0.00148,70777.0,70750.0,0.16004108]
[1773236133988,0.00148,70783.0,70760.0,0.16004108]
[1773236134244,0.07063743,70784.0,70761.0,0.00148]
[1773236134439,0.00148,70782.0,70762.0,0.00148]
[1773236134660,0.07064042,70781.0,70750.0,0.16004108]
[1773236134819,0.07064042,70781.0,70730.0,0.14708]
[1773236134820,0.16004108,70780.0,70751.0,0.00148]
[1773236135016,0.08863653,70779.0,70752.0,0.00148]
[1773236135391,0.08863653,70779.0,70750.0,0.16004108]
[1773236135598,0.07064042,70781.0,70751.0,0.00148]
[1773236136221,0.07063942,70784.0,70760.0,0.1597623]
[1773236136436,0.07063942,70784.0,70761.0,0.00148]
[1773236136614,0.00022001,70785.0,70761.0,0.00148]
[1773236136817,0.07061103,70811.0,70770.0,0.17117654]
[1773236137015,0.31098,70809.0,70771.0,0.00148]
[1773236137215,0.08863653,70806.0,70772.0,0.00148]
[1773236137436,0.08863653,70806.0,70759.0,0.07065939]
[1773236137437,0.294975,70803.0,70752.0,0.07066938]
[1773236137747,0.07061103,70811.0,70754.0,0.07066647]
[1773236137748,0.001,70779.0,70754.0,0.07066647]
[1773236137958,0.37102153,70792.0,70754.0,0.07066647]
[1773236138215,0.08863653,70788.0,70754.0,0.07066647]
[1773236138763,0.00148,70787.0,70754.0,0.07066647]
[1773236138963,0.08863653,70809.0,70760.0,0.17117654]
[1773236139163,0.001,70811.0,70754.0,0.07166647]
[1773236139164,0.001,70811.0,70780.0,0.17117654]
[1773236139362,0.07061113,70811.0,70781.0,0.00148]
[1773236139568,0.01124,70814.0,70781.0,0.00148]
[1773236139772,0.07225827,70816.0,70781.0,0.00148]
[1773236139972,0.07060551,70817.0,70781.0,0.00148]
[1773236140174,0.07060052,70821.0,70790.0,0.17117654]
[1773236140376,0.07060052,70821.0,70791.0,0.00148]
[1773236140681,0.07060052,70821.0,70792.0,0.00148]
[1773236140875,0.07060052,70821.0,70793.0,0.00148]
[1773236141081,0.07060052,70821.0,70782.0,0.07063942]
[1773236141082,0.09039197,70819.0,70782.0,0.07063942]
[1773236141281,0.07260049,70822.0,70783.0,0.00148]
[1773236141478,0.07260049,70822.0,70790.0,0.001]
[1773236141677,0.002,70822.0,70791.0,0.00148]
[1773236141885,0.07260032,70822.0,70791.0,0.00148]
[1773236142088,0.02260032,70822.0,70790.0,0.001]
[1773236142300,0.02260032,70822.0,70770.0,0.15]
[1773236142301,0.11439501,70795.0,70763.0,0.0706578]
[1773236142490,0.11439501,70793.0,70764.0,0.00148]
[1773236142668,0.11439501,70793.0,70765.0,0.00148]
[1773236142900,0.11439501,70791.0,70766.0,0.07065539]
[1773236143098,0.07062944,70795.0,70766.0,0.07065539]
[1773236143099,0.11439501,70800.0,70766.0,0.07213539]
[1773236143275,0.07084554,70796.0,70766.0,0.07213539]
[1773236143480,0.07232554,70796.0,70766.0,0.07065539]
[1773236143683,0.11439501,70794.0,70767.0,0.00148]
[1773236143902,0.34202238,70795.0,70758.0,0.07066338]
[1773236143903,0.11439501,70792.0,70758.0,0.07066338]
[1773236144104,0.11439501,70792.0,70759.0,0.00148]
[1773236144509,0.34202238,70795.0,70759.0,0.00148]
[1773236144510,0.41264883,70795.0,70759.0,0.00148]
[1773236144710,0.07062645,70795.0,70760.0,0.17117654]
[1773236144912,0.07062645,70795.0,70761.0,0.07066039]
[1773236145134,0.00148,70794.0,70761.0,0.07066039]
[1773236145281,0.11587501,70794.0,70761.0,0.07066039]
[1773236145480,0.11439501,70794.0,70762.0,0.00148]
[1773236145901,0.00148,70793.0,70762.0,0.00148]
[1773236146216,0.11551961,70792.0,70757.0,0.01124]
[1773236146413,0.11551961,70791.0,70758.0,0.07066338]
[1773236146611,0.00148,70790.0,70758.0,0.07066338]
[1773236146816,0.11551961,70791.0,70759.0,0.00148]
[1773236146817,0.00148,70789.0,70759.0,0.00148]
[1773236147012,0.07063344,70788.0,70760.0,0.07066139]
[1773236147360,0.07063344,70788.0,70757.0,1e-08]
[1773236147361,0.11551961,70787.0,70757.0,1e-08]
[1773236147530,0.07063344,70788.0,70757.0,1e-08]
[1773236147531,0.11551961,70785.0,70757.0,1e-08]
[1773236147884,0.11551961,70783.0,70757.0,1e-08]
[1773236148089,0.07063344,70788.0,70742.0,0.00144]
[1773236148090,0.11551961,70778.0,70742.0,0.00144]
[1773236148289,0.11551961,70778.0,70734.0,0.00144]
[1773236148527,0.11551961,70778.0,70730.0,0.07069063]
[1773236148528,0.11551961,70778.0,70735.0,0.00144]
[1773236148835,0.519817,70773.0,70735.0,0.00144]
[1773236149040,0.0706504,70771.0,70736.0,0.07068536]
[1773236149389,0.0706504,70771.0,70714.0,0.07070735]
[1773236149390,0.17117654,70760.0,70714.0,0.07070735]
[1773236149573,0.11551961,70757.0,70711.0,0.00144]
[1773236149833,0.11551961,70757.0,70700.0,0.08196035]
[1773236149834,0.11551961,70739.0,70700.0,0.08196048]
[1773236150033,0.34202238,70769.0,70663.0,0.03505013]
[1773236150034,0.11551961,70729.0,70688.0,0.07073269]
[1773236150176,0.11551961,70727.0,70681.0,0.0014]
[1773236150383,0.11551961,70723.0,70682.0,0.0014]
[1773236150592,0.36255351,70738.0,70670.0,0.24192788]
[1773236150593,0.11551961,70721.0,70683.0,0.0014]
[1773236150802,0.11551961,70719.0,70684.0,0.00136]
[1773236150977,0.11551961,70719.0,70685.0,0.00132]
[1773236151173,0.11551961,70719.0,70680.0,0.17117654]
[1773236151174,0.18622294,70719.0,70686.0,0.00132]
[1773236151378,0.07218333,70719.0,70686.0,0.00132]
[1773236151609,0.07218333,70719.0,70687.0,0.00132]
[1773236151831,0.07218333,70719.0,70681.0,0.07074036]
[1773236152032,0.11551961,70718.0,70682.0,0.00132]
[1773236152186,0.11551961,70718.0,70681.0,0.07074036]
[1773236152505,0.11551961,70718.0,70686.0,0.001]
[1773236152710,0.11551961,70716.0,70681.0,0.07074036]
[1773236153237,0.47807312,70709.0,70665.0,0.00136]
[1773236153438,0.11699961,70708.0,70665.0,0.00136]
[1773236153739,0.00148,70707.0,70665.0,0.00136]
[1773236153883,0.11551961,70706.0,70665.0,0.00136]
[1773236154086,0.11551961,70706.0,70660.0,0.07096039]
[1773236154087,0.11551961,70699.0,70660.0,0.0002]
[1773236154282,0.00148,70707.0,70636.0,0.0002]
[1773236154283,0.17117654,70680.0,70636.0,0.0002]
[1773236154489,0.11551961,70678.0,70638.0,0.07078269]
[1773236154735,0.11551961,70678.0,70636.0,0.0002]
[1773236154937,0.11551961,70678.0,70636.0,0.07098452]
[1773236155148,0.17117654,70670.0,70636.0,0.0002]
[1773236155445,0.17117654,70670.0,70633.0,0.07078766]
[1773236155446,0.11699961,70669.0,70633.0,0.07078766]
[1773236155595,0.11551961,70667.0,70628.0,0.07091258]
[1773236155790,0.11551961,70665.0,70628.0,0.07091258]
[1773236156000,0.11551961,70663.0,70628.0,0.07091258]
[1773236156206,0.11551961,70659.0,70614.0,0.07080748]
[1773236156406,0.119743,70668.0,70614.0,0.07080748]
[1773236156604,0.11551961,70665.0,70614.0,0.07080748]
[1773236156804,4.973783,70658.0,70614.0,0.07080748]
[1773236157052,4.973783,70658.0,70613.0,0.07154348]
[1773236157053,0.17117654,70640.0,70613.0,0.000736]
[1773236157228,0.17117654,70640.0,70614.0,0.07080748]
[1773236157229,0.07078343,70638.0,70614.0,0.07080748]
[1773236157425,0.00148,70637.0,70614.0,0.07080748]
[1773236158220,0.00148,70638.0,70614.0,0.07080748]
[1773236158498,0.11551961,70644.0,70614.0,0.07080748]
[1773236158770,0.11551961,70664.0,70620.0,0.17117654]
[1773236158964,0.00148,70663.0,70620.0,0.17110154]
[1773236159171,0.11551961,70664.0,70621.0,0.07080047]
[1773236159371,0.1862779,70664.0,70621.0,0.07080047]
[1773236159524,0.1862779,70664.0,70622.0,0.00136]
[1773236159525,0.11699961,70663.0,70622.0,0.00136]
[1773236159726,0.11551961,70663.0,70622.0,0.00121]
[1773236159971,0.07075829,70664.0,70622.0,0.00121]
[1773236159972,0.11551961,70661.0,70622.0,0.001135]
[1773236160180,0.11551961,70661.0,70622.0,0.00106]
[1773236160332,0.07074998,70672.0,70622.0,0.00106]
[1773236160333,0.07074918,70673.0,70622.0,0.000985]
[1773236160539,0.11699961,70672.0,70622.0,0.000835]
[1773236160738,0.11699961,70672.0,70622.0,0.00076]
[1773236160942,0.11551961,70672.0,70630.0,0.17117654]
[1773236161152,0.11551961,70672.0,70631.0,0.07215044]
[1773236161363,0.0707379,70684.0,70631.0,0.07215044]
[1773236161364,0.00148,70684.0,70640.0,0.17110154]
[1773236161725,0.00148,70684.0,70630.0,0.07079044]
[1773236161726,0.11551961,70682.0,70630.0,0.07079044]
[1773236161878,0.36255351,70679.0,70631.0,0.001325]
[1773236162056,0.36255351,70679.0,70631.0,0.00125]
[1773236162057,0.11551961,70678.0,70631.0,0.00125]
[1773236162265,0.00144,70677.0,70631.0,0.001175]
[1773236162495,0.00144,70676.0,70640.0,0.17117654]
[1773236162760,0.11551961,70696.0,70641.0,0.0014]
[1773236162882,0.36255351,70697.0,70630.0,0.24181698]
[1773236162883,0.11551961,70682.0,70630.0,0.24181698]
[1773236163091,0.36255351,70679.0,70631.0,0.0014]
[1773236163284,0.11551961,70676.0,70632.0,0.07078944]
[1773236163488,0.11551961,70674.0,70632.0,0.07078944]
[1773236163688,0.11551961,70672.0,70632.0,0.07078944]
[1773236163892,0.11551961,70669.0,70640.0,0.001]
[1773236164200,0.490239,70670.0,70627.0,0.07079445]
[1773236164201,0.11551961,70667.0,70627.0,0.07079445]
[1773236164523,0.11551961,70667.0,70606.0,0.1495]
[1773236164524,0.11551961,70665.0,70608.0,0.07081288]
[1773236164724,0.17128,70666.0,70606.0,0.0002]
[1773236164725,0.11551961,70658.0,70616.0,0.07080548]
[1773236164950,0.11551961,70654.0,70616.0,0.07080548]
[1773236165151,0.11551961,70649.0,70614.0,0.071007]
[1773236165351,0.11551961,70647.0,70614.0,0.071007]
[1773236165764,0.00144,70646.0,70614.0,0.072407]
[1773236165918,0.00126088,70645.0,70614.0,0.071007]
[1773236166259,0.00108175,70645.0,70614.0,0.071007]
[1773236166957,0.11660136,70645.0,70614.0,0.071007]
[1773236167358,0.11551961,70643.0,70614.0,0.071007]
[1773236167762,0.11551961,70643.0,70614.0,0.0002]
[1773236168351,0.11551961,70643.0,70614.0,0.07100726]
[1773236168550,0.11551961,70641.0,70614.0,0.07100726]
[1773236168973,0.11551961,70641.0,70614.0,0.07100713]
[1773236169351,0.07222142,70640.0,70614.0,0.07100713]
[1773236169962,0.07222142,70640.0,70614.0,0.07100725]
[1773236170174,0.0707714,70650.0,70614.0,0.07100725]
[1773236170373,0.11551961,70664.0,70614.0,0.07100725]
[1773236170374,0.07075783,70664.0,70620.0,0.17117654]
[1773236170575,0.07075738,70665.0,70615.0,0.00144]
[1773236170576,0.00148,70663.0,70630.0,0.17117654]
[1773236170917,0.00148,70663.0,70614.0,0.07100725]
[1773236170918,0.00148,70663.0,70631.0,0.00144]
[1773236171116,0.00148,70663.0,70632.0,0.00144]
[1773236171417,0.00148,70662.0,70634.0,0.07078743]
[1773236171561,0.00148,70664.0,70634.0,0.07078743]
[1773236171766,1e-08,70667.0,70634.0,0.07078743]
[1773236171962,0.00144,70669.0,70634.0,0.07078743]
[1773236172165,0.001,70640.0,70634.0,0.07078743]
[1773236172495,0.0014,70686.0,70636.0,0.242639]
[1773236172694,0.0014,70685.0,70640.0,0.17117654]
[1773236172866,0.0014,70684.0,70640.0,0.17117654]
[1773236173277,0.0721383,70684.0,70641.0,0.07078042]
[1773236173486,0.0014,70689.0,70650.0,0.17117654]
[1773236173784,0.0014,70689.0,70641.0,0.07078042]
[1773236173785,0.01124,70700.0,70660.0,0.17117654]
[1773236173984,0.00136,70699.0,70661.0,0.0014]
[1773236174210,1e-08,70701.0,70670.0,0.17117654]
[1773236174412,0.00136,70703.0,70670.0,0.17117654]
[1773236174796,0.07070535,70716.0,70680.0,0.17117654]
[1773236174995,0.07070535,70716.0,70655.0,0.03234816]
[1773236174996,0.07069753,70724.0,70690.0,0.17117654]
[1773236175112,0.00136,70723.0,70691.0,0.0014]
[1773236175309,0.11551961,70721.0,70692.0,0.07072936]
[1773236175547,0.07068936,70732.0,70692.0,0.07072936]
[1773236175548,0.11551961,70719.0,70692.0,0.07072936]
[1773236175991,0.07068936,70732.0,70692.0,0.07072936]
[1773236175992,0.0014,70718.0,70692.0,0.07072936]
[1773236176225,0.0014,70717.0,70692.0,0.07072936]
[1773236176384,0.0014,70716.0,70692.0,0.07072936]
[1773236176580,0.0014,70718.0,70693.0,0.00144]
[1773236177300,0.07069136,70731.0,70694.0,0.07072736]
[1773236177503,0.11551961,70739.0,70694.0,0.07072736]
[1773236177687,0.0014,70737.0,70710.0,0.17117654]
[1773236178024,0.0014,70744.0,70711.0,0.19624496]
[1773236178350,0.07066738,70754.0,70711.0,0.19624496]
[1773236178734,0.00136,70753.0,70720.0,0.17117654]
[1773236178883,0.00022001,70747.0,70721.0,0.00144]
[1773236179286,0.07140317,70755.0,70722.0,0.07069935]
[1773236179287,0.00136,70752.0,70722.0,0.07069935]
[1773236179586,0.07065341,70768.0,70730.0,0.17117654]
[1773236179845,0.0014,70770.0,70730.0,0.17117654]
[1773236180012,1e-08,70782.0,70751.0,0.28711556]
[1773236180210,1e-08,70782.0,70730.0,0.15]
[1773236180211,0.07064002,70782.0,70730.0,0.17117654]
[1773236180414,0.11551961,70781.0,70731.0,0.00144]
[1773236180590,0.11551961,70781.0,70740.0,0.17117654]
[1773236180591,0.11687961,70781.0,70740.0,0.17117654]
[1773236180795,0.07064002,70782.0,70722.0,0.24053935]
[1773236180796,0.00136,70780.0,70730.0,0.17117654]
[1773236181061,0.11551961,70781.0,70731.0,0.00144]
[1773236181210,0.07064002,70782.0,70740.0,0.17117654]
[1773236181211,1e-08,70782.0,70740.0,0.17117654]
[1773236181410,0.0016688,70781.0,70750.0,0.17117654]
[1773236181648,0.07064142,70780.0,70751.0,0.00144]
[1773236181793,1e-08,70782.0,70752.0,0.00144]
[1773236181993,1e-08,70782.0,70753.0,0.00144]
[1773236182203,0.00022001,70790.0,70760.0,0.17117654]
[1773236182404,0.11551961,70812.0,70771.0,0.28561694]
[1773236182703,0.07061338,70809.0,70772.0,0.00144]
[1773236182839,0.07061211,70810.0,70772.0,0.00144]
[1773236183044,0.00132,70808.0,70772.0,0.00144]
[1773236183474,0.07061448,70807.0,70773.0,0.07064841]
[1773236183669,0.07060977,70812.0,70773.0,0.07064841]
[1773236183894,0.0706085,70813.0,70780.0,0.17117654]
[1773236184105,0.00132,70812.0,70780.0,0.17117654]
[1773236184270,0.0706085,70813.0,70781.0,0.00148]
[1773236184446,0.0706085,70813.0,70773.0,0.07064841]
[1773236184447,0.00132,70812.0,70782.0,0.00148]
[1773236184659,0.0706085,70813.0,70783.0,0.00148]
[1773236184876,0.00136,70812.0,70784.0,0.00148]
[1773236185077,0.00136,70812.0,70785.0,0.00148]
[1773236185314,0.01124,70814.0,70786.0,0.00148]
[1773236185522,0.01124,70814.0,70787.0,0.07211443]
[1773236185716,0.0706085,70813.0,70787.0,0.07063443]
[1773236185921,0.0706085,70813.0,70788.0,0.00148]
[1773236186150,0.11551961,70812.0,70782.0,0.07063942]
[1773236186326,0.00022001,70807.0,70782.0,0.07063942]
[1773236186535,0.11551961,70805.0,70776.0,0.00148]
[1773236186732,0.11551961,70805.0,70774.0,0.00148]
[1773236186961,0.11551961,70805.0,70769.0,0.0706524]
[1773236187168,0.11482698,70805.0,70770.0,0.00148]
[1773236187319,0.11482698,70805.0,70771.0,0.0706504]
[1773236187320,0.07197747,70804.0,70771.0,0.0706504]
[1773236187547,0.0014,70803.0,70771.0,0.0706504]
[1773236187708,0.0014,70802.0,70771.0,0.0706504]
[1773236187910,0.18544445,70805.0,70771.0,0.0706504]
[1773236188115,0.00022001,70807.0,70771.0,0.0706504]
[1773236188367,0.00022001,70807.0,70772.0,0.00148]
[1773236188920,0.07083509,70807.0,70771.0,0.0706504]
[1773236189128,0.07083509,70807.0,70773.0,0.00148]
[1773236189522,0.11517329,70806.0,70774.0,0.07212741]
[1773236189890,0.0014,70805.0,70774.0,0.07212741]
[1773236190088,0.11517329,70806.0,70774.0,0.07212741]
[1773236190291,0.11517329,70806.0,70774.0,0.07064741]
[1773236190489,0.0014,70805.0,70774.0,0.07064741]
[1773236190689,0.0014,70805.0,70775.0,0.00148]
[1773236190911,0.11517329,70804.0,70767.0,0.0721344]
[1773236191115,0.11517329,70804.0,70768.0,0.00138]
[1773236191315,0.0014,70803.0,70768.0,0.00138]
[1773236191533,0.07061947,70802.0,70769.0,0.0706524]
[1773236191940,0.00144,70801.0,70769.0,0.0706524]
[1773236192106,0.01124,70814.0,70780.0,0.17108936]
[1773236192307,0.01124,70814.0,70781.0,0.00148]
[1773236192706,0.07059069,70831.0,70781.0,0.00148]
[1773236192707,0.0022386,70823.0,70790.0,0.17108936]
[1773236193130,0.00144,70822.0,70791.0,0.00148]
[1773236193343,0.00144,70822.0,70791.0,0.001305]
[1773236193496,0.07060052,70821.0,70792.0,0.07203444]
[1773236193699,0.07060052,70821.0,70792.0,0.07188444]
[1773236193922,0.07204052,70822.0,70792.0,0.07180944]
[1773236194127,0.00144,70821.0,70792.0,0.07173444]
[1773236194340,0.00144,70821.0,70770.0,0.24173976]
[1773236194508,0.00022001,70804.0,70771.0,0.07212986]
[1773236194730,0.00022001,70804.0,70771.0,0.07197986]
[1773236194978,0.00022001,70804.0,70771.0,0.07190486]
[1773236195408,0.00022001,70804.0,70771.0,0.07172986]
[1773236195685,0.00022001,70812.0,70780.0,0.17108936]
[1773236195847,0.00022001,70812.0,70781.0,0.001405]
[1773236196044,0.00022001,70812.0,70781.0,0.00133]
[1773236196268,0.00022001,70812.0,70781.0,0.001255]
[1773236196444,0.00022001,70812.0,70781.0,0.00108]
[1773236196649,0.07083021,70812.0,70780.0,0.17101436]
[1773236196849,0.00022001,70812.0,70781.0,0.001405]
[1773236197053,0.00132,70811.0,70782.0,0.001405]
[1773236197253,0.00132,70811.0,70783.0,0.001405]
[1773236197471,0.07193059,70811.0,70784.0,0.07063643]
[1773236197670,0.00022001,70812.0,70784.0,0.07063643]
[1773236197872,0.00132,70811.0,70785.0,0.001405]
[1773236198072,0.07859444,70810.0,70785.0,0.001405]
[1773236198592,0.00136,70809.0,70785.0,0.001305]
[1773236198793,0.07859444,70810.0,70785.0,0.001305]
[1773236199007,0.07859444,70808.0,70772.0,0.00148]
[1773236199148,0.00136,70807.0,70773.0,0.00148]
[1773236199348,0.00136,70807.0,70774.0,0.00138]
[1773236199564,0.00136,70807.0,70775.0,0.07212641]
[1773236199764,0.07197516,70807.0,70775.0,0.07212641]
[1773236199965,0.0755596,70806.0,70775.0,0.07064641]
[1773236200176,0.0755596,70806.0,70764.0,0.07065682]
[1773236200177,0.0755596,70806.0,70771.0,0.00148]
[1773236200364,0.0755596,70806.0,70772.0,0.00148]
[1773236200565,0.00136,70805.0,70773.0,0.00148]
[1773236200776,0.00136,70805.0,70763.0,0.0522474]
[1773236200777,0.0755596,70804.0,70770.0,0.00148]
[1773236201306,0.0755596,70804.0,70764.0,0.00148]
[1773236201480,0.0755596,70802.0,70760.0,0.07066139]
[1773236201649,0.0755596,70802.0,70765.0,0.00138]
[1773236201865,0.225886,70801.0,70760.0,0.00148]
[1773236202056,0.07061847,70803.0,70758.0,0.07066139]
[1773236202057,0.0755596,70797.0,70758.0,0.07066338]
[1773236202252,0.0755596,70795.0,70758.0,0.07066338]
[1773236202451,0.0755596,70795.0,70757.0,0.08190338]
[1773236202452,0.0755596,70795.0,70757.0,0.01124]
[1773236202678,0.0755596,70793.0,70757.0,0.01114]
[1773236202880,0.0755596,70793.0,70757.0,0.0818038]
[1773236203106,0.0755596,70791.0,70757.0,0.0818038]
[1773236203487,0.0755596,70787.0,70757.0,0.0817038]
[1773236203689,0.0755596,70787.0,70757.0,0.08170401]
[1773236204076,0.07063344,70788.0,70757.0,0.08170401]
[1773236204077,0.0755596,70785.0,70757.0,0.01104]
[1773236204325,0.0755596,70785.0,70730.0,0.1714071]
[1773236204326,0.0755596,70785.0,70747.0,0.0706739]
[1773236204531,0.0014,70786.0,70739.0,0.07058236]
[1773236204532,0.0755596,70783.0,70739.0,0.07058236]
[1773236205124,0.0014,70786.0,70730.0,0.07089125]
[1773236205125,0.0755596,70767.0,70730.0,0.07089125]
[1773236205272,0.35579479,70768.0,70730.0,0.07089125]
[1773236205273,0.0755596,70765.0,70730.0,0.0002]
[1773236205471,0.0755596,70761.0,70724.0,0.07069697]
[1773236205696,0.0755596,70759.0,70722.0,0.07089906]
[1773236205927,0.07065939,70762.0,70722.0,0.07089906]
[1773236205928,0.0755596,70757.0,70722.0,0.07089906]
[1773236206828,0.0755596,70755.0,70722.0,0.0002]
[1773236206990,0.0755596,70755.0,70722.0,0.07089913]
[1773236207175,0.0755596,70753.0,70722.0,0.07089913]
[1773236207382,0.0755596,70751.0,70700.0,0.11799269]
[1773236207619,0.0755596,70749.0,70715.0,0.07090608]
[1773236207832,0.0755596,70747.0,70707.0,0.07071339]
[1773236208054,0.889135,70746.0,70707.0,0.07071339]
[1773236208256,0.0755596,70745.0,70707.0,0.07071339]
[1773236208552,0.0755596,70747.0,70707.0,0.07071339]
[1773236208756,0.07167137,70751.0,70710.0,0.1712071]
[1773236208946,0.0755596,70745.0,70707.0,0.07071339]
[1773236209105,0.0755596,70745.0,70711.0,0.00144]
[1773236209530,0.0755596,70743.0,70712.0,0.07070935]
[1773236210446,0.0755596,70743.0,70705.0,0.00144]
[1773236210623,0.0765596,70743.0,70705.0,0.00144]
[1773236211030,0.0765596,70743.0,70712.0,0.0002]
[1773236211550,0.07067937,70742.0,70712.0,0.0002]
[1773236211709,0.07879414,70741.0,70712.0,0.07090859]
[1773236212349,0.00144,70740.0,70712.0,0.07090859]